Workbook

Sheet Start
A3: Welcome To The Cost Of Poor Quality

Sheet 1. Fill
B1: Enter Your Email Group
B2: Email your report to the desired parties within your company
B4: Email | C4: Last Name, First Name

Sheet COPQ FORM
A1: =IFERROR(IF(M24>0,1,2),2) -> 1
A8: FAILURES DUE TO INGREDIENT MATERIALS AT THE PLANT | J8: COST OF POOR QUALITY FORM
A11: #1 - Incorrect Ingredient Materials Accepted/Stored | AB11: Cost Yd
K12: Your Annual Yardage = | O12: 50000 | AA12: 1 | AB12: =E18/O12 -> 0.07 | AD12: 1
AA13: 2 | AB13: =E31/O12 -> 0.14 | AD13: 2
B14: # of Occurrences This Year | E14: 7 | K14: Your Total # of Loads = | O14: 7000 | AA14: 3 | AB14: =F52/O12 -> 0.08821428571 | AD14: 3
AA15: 4 | AB15: =F66/O12 -> 0.5
B16: Avg. Cost per Occurrence | E16: 500 | K16: Average Load Size = | O16: =$AB$31 -> 7.142857143 | AA16: 5 | AB16: =F84 -> 1.308333333
AA17: 6 | AB17: =G93 -> 0.2
B18: Avg. Annual Cost = | E18: =E14*E16 -> 3500 | K18: Average Sale Price Per/Yd. = | O18: 110 | AA18: 7 | AB18: =F105 -> 3.958333333
AA19: 8 | AB19: =E130 -> 2.3
B20: Avg. Cost Per Yd3 = | E20: =E18/O12 -> 0.07 | AA20: 9 | AB20: =I139 -> 0.4
AA21: 10 | AB21: =I147 -> 0.8
K22: Annual Cost for Poor Quality Concrete | AA22: 11 | AB22: =F162 -> 0.5
A23: #2 - Cost of Handling Ingredient Materials that do not meet specifications | AA23: 12 | AB23: =G174 -> 0
M24: =E18+E31+F52+F66+F85+G91+(O12*F105)+E132+I137+I145+F160+G172+F181+F198+F205 -> 525224.0476 | AA24: 13 | AB24: =F183 -> 0
AA25: 14 | AB25: =F199 -> 0.0396
AA26: 15 | AB26: =F207 -> 0.2
B27: # of Occurrences This Year | E27: 14 | K27: Annual Avg. Cost of Poor Quality Concrete per/yd. | AB27: =SUM(AB12:AB26) -> 10.50448095
B29: Avg. Cost per Occurrence | E29: 500 | M29: =M24/O12 -> 10.50448095
B31: Avg. Annual Cost = | E31: =E27*E29 -> 7000 | AB31: =O12/O14 -> 7.142857143
K32: Annual Avg. Cost of Poor Quality Concrete per/Load
B33: Avg. Cost Per Yd3 = | E33: =E31/O12 -> 0.14
M34: =M24/O14 -> 75.0320068
A35: FAILURES DUE TO BATCHING OR PLANT ISSUES
K36: Top 3 Poor Quality Control Cost per/yd.
A37: #3 - Cost due to concrete loads batched incorrectly and discovered PRIOR to delivery | N37: =IF(M39=0,"Please Fill In COPQ Form",IF(M39=AB12," #1 Incorrect Ingredient Materials Accepted/Stored",IF(M39=AB13," #2 Cost of Handling Ingredient Materials that do not meet specifications",IF(M39=AB14," #3 Cost due to concrete loads batched incorrectly and discovered prior to delivery",IF(M39=AB15," #4 Cost of adjusting concrete mixtures at the plant",IF(M39=AB16," #5 Over-yielding and cement over-batching",IF(M39=AB17," #6 Backcharge/credit due to under yielding",IF(M39=AB18," #7 Strength over-design",IF(M39=AB19," #8 Rejected concrete costs",IF(M39=AB20," #9 Backcharge/credit due to fresh concrete characteristics",IF(M39=AB21,"#10 Backcharge/credit due to hardened concrete characteristics",IF(M39=AB22," #11 Cost of adjusting concrete mixtures onsite",IF(M39=AB23," #12 Reduction/Increase in product liability insurance premium due to quality from previous year",IF(M39=AB24," #13 Liability and Penalties paid out due to quality issues or specification non-compliance",IF(M39=AB25," #14 Internal costs for handling customer quality complaints",IF(M39=AB26," #15 Cost of additional Testing",)))))))))))))))) -> #7 Strength over-design
K39: #1 | M39: =LARGE(AB12:AB26,AD12) -> 3.958333333
B41: # of Loads not sent to the job this year | F41: 10 | N41: =IF(M43=0,"Please Fill In COPQ Form",IF(M43=AB12," #1 Incorrect Ingredient Materials Accepted/Stored",IF(M43=AB13," #2 Cost of Handling Ingredient Materials that do not meet specifications",IF(M43=AB14," #3 Cost due to concrete loads batched incorrectly and discovered prior to delivery",IF(M43=AB15," #4 Cost of adjusting concrete mixtures at the plant",IF(M43=AB16," #5 Over-yielding and cement over-batching",IF(M43=AB17," #6 Backcharge/credit due to under yielding",IF(M43=AB18," #7 Strength over-design",IF(M43=AB19," #8 Rejected concrete costs",IF(M43=AB20," #9 Backcharge/credit due to fresh concrete characteristics",IF(M43=AB21,"#10 Backcharge/credit due to hardened concrete characteristics",IF(M43=AB22," #11 Cost of adjusting concrete mixtures onsite",IF(M43=AB23," #12 Reduction/Increase in product liability insurance premium due to quality from previous year",IF(M43=AB24," #13 Liability and Penalties paid out due to quality issues or specification non-compliance",IF(M43=AB25," #14 Internal costs for handling customer quality complaints",IF(M43=AB26," #15 Cost of additional Testing",)))))))))))))))) -> #8 Rejected concrete costs
B43: Truck Time | F43: Avg. Time, Min | G43: Cost/Min | K43: #2 | M43: =LARGE(AB12:AB26,AD13) -> 2.3
F44: 10 | G44: 1.25
N45: =IF(M47=0,"Please Fill In COPQ Form",IF(M47=AB12," #1 Incorrect Ingredient Materials Accepted/Stored",IF(M47=AB13," #2 Cost of Handling Ingredient Materials that do not meet specifications",IF(M47=AB14," #3 Cost due to concrete loads batched incorrectly and discovered prior to delivery",IF(M47=AB15," #4 Cost of adjusting concrete mixtures at the plant",IF(M47=AB16," #5 Over-yielding and cement over-batching",IF(M47=AB17," #6 Backcharge/credit due to under yielding",IF(M47=AB18," #7 Strength over-design",IF(M47=AB19," #8 Rejected concrete costs",IF(M47=AB20," #9 Backcharge/credit due to fresh concrete characteristics",IF(M47=AB21,"#10 Backcharge/credit due to hardened concrete characteristics",IF(M47=AB22," #11 Cost of adjusting concrete mixtures onsite",IF(M47=AB23," #12 Reduction/Increase in product liability insurance premium due to quality from previous year",IF(M47=AB24," #13 Liability and Penalties paid out due to quality issues or specification non-compliance",IF(M47=AB25," #14 Internal costs for handling customer quality complaints",IF(M47=AB26," #15 Cost of additional Testing",)))))))))))))))) -> #5 Over-yielding and cement over-batching
B46: Avg. Customer Cost per yd. | F46: =O18 -> 110
K47: #3 | M47: =LARGE(AB12:AB26,AD14) -> 1.308333333
B48: # Loads saved and sold to other jobs | F48: 5
B50: Avg. Discount Per/Yd. on Saved Concrete | F50: 10
B52: Avg. Annual Cost = | F52: =((F41-F48)*F46*O16)+(F48*F50*O16)+(F41*F44*G44) -> 4410.714286
B54: Avg. Cost Per Yd3 = | F54: =F52/O12 -> 0.08821428571
A57: #4 - Cost of adjusting concrete mixtures at the plant
B60: Avg. Time at plant for adjustments (min.) | F60: 10
B62: # of loads adjusted annually | F62: 2000
B64: Delivery Cost/Minute | F64: 1.25
B66: Avg. Annual Cost = | F66: =((F60*F64)*F62) -> 25000
B68: Avg. Cost Per Yd3 = | F68: =F66/O12 -> 0.5
A72: #5 - Over-yielding and cement over-batching
F74: Mix 1 | G74: Mix 2 | H74: Mix 3 | I74: Mix 4 | J74: Mix 5 | K74: Average
B75: Avg. Over Yield (percentage) | F75: 0.01 | G75: 0.02 | H75: 0.005 | I75: 0 | J75: 0.008 | K75: =AVERAGE(F75:J75,IFERROR(,0)) -> 0.007166666667
B76: Avg. Cement Over Batch (lb/yd3) | F76: 13 | G76: 20 | H76: 8 | I76: 0 | J76: 11 | K76: =AVERAGE(F76:J76,IFERROR(,0)) -> 8.666666667
B78: Avg. Sale Price / yd3 | F78: =O18 -> 110
B79: Avg. Cost of Cement ($/lb) | F79: 0.06
B81: Cost / yd3 produced - Over Yield | F81: =((K75*O12)*F78)/O12 -> 0.7883333333
B82: Cost / yd3 produced - Over Batch | F82: =K76*F79 -> 0.52
B84: Total Cost / yd3 | F84: =F81+F82 -> 1.308333333
B85: Total Annual Cost | F85: =F84*O12 -> 65416.66667
A88: #6 - Backcharge/credit due to under yielding
B91: Annual back charge / credit due to under yielding | G91: 10000
B93: Annual Cost Per Yd3 | G93: =G91/O12 -> 0.2
A95: #7 - Strength over-design
A96: Strength over-design of over 800 psi for mixtures with a specified strength ≤5000 psi that do not have a max w/cm, min CM content, early-age strength or fixed over-design requirement - Assume material cost of $1.25/cyd for every 200 psi excess
F100: Mix 1 | G100: Mix 2 | H100: Mix 3 | I100: Avg.
B101: Avg. Strength Over Design (PSI) | F101: 1000 | G101: 1200 | H101: 2100 | I101: =AVERAGE(F101,G101,H101) -> 1433.333333
B103: Materials Cost (NRMCA) | F103: 1.25
B105: OverDesign Cost Per Yd3 | F105: =IF(F101=0,0,(I101-800)/200)*F103 -> 3.958333333
A107: FAILURES DUE TO ISSUES DISCOVERED ON THE JOBSITE OR WITH PLACED CONCRETE
A110: #8 - Rejected Concrete Cost
B114: Rejected Yards | E114: 500
E116: Avg. Cost/Unit | F116: Unit
B117: Material Cost | E117: 60
B119: Handling Cost | E119: 220
C122: Total | E122: =SUM(E117,E119) -> 280
B124: # Saved Yards = | E124: 100
B126: Discounted Cost/yd | E126: 30
B128: Percent Rejected = | E128: =E114/O12 -> 0.01
B130: Rejected Cost Per Yd3 = | E130: =(((E114-E124)*E122)+(E124*E126))/O12 -> 2.3
B132: Total Annual Cost = | E132: =E130*O12 -> 115000
A134: #9 - Backcharge/ credit due to fresh concrete characteristics
B137: Annual back charge / credit due to fresh concrete characteristics | I137: 20000
F139: Annual Cost Per Yd3 | I139: =I137/O12 -> 0.4
A140: #10 - Backcharge/credit due to hardened concrete characteristics
B145: Annual back charge / credit due to hardened concrete characteristics | I145: 40000
B147: Annual Cost Per Yd3 | I147: =I145/O12 -> 0.8
A151: #11 - Cost of adjusting concrete mixtures onsite
B154: Avg. Time for adjustments (min.) | F154: 10
B156: # of loads adjusted annually | F156: 2000
B158: Delivery Cost/Minute | F158: 1.25
B160: Avg. Annual Cost = | F160: =((F154*F158)*F156) -> 25000
B162: Avg. Cost Per/Yd3 = | F162: =F160/O12 -> 0.5
A165: LAGGING INTERNAL COSTS
A168: #12 -Reduction/Increase in product liability insurance premium due to quality from previous year
B172: Increase / decrease in liability insurance premium | G172: 0
B174: Annual Cost/yd3 | G174: =G172/O12 -> 0
A177: #13 - Liability and Penalties paid out due to quality issues or specification non-compliance
B181: Annual penalties / liabilities paid out | F181: 0
B183: Annual Cost/yd3 | F183: =F181/O12 -> 0
A186: #14 - Internal costs for handling customer quality complaints
B189: Number of Claims | F189: 1
B190: Avg. Hours / Claim | F190: 24
B191: Avg. Miles / Claim | F191: 100
B192: Total Hours | F192: =F190*F189 -> 24
B193: Total Miles | F193: =F191*F189 -> 100
B194: Cost / Hour | F194: 80
B195: Cost / Mile | F195: 0.6
B196: Total Hourly Cost | F196: =F194*F192 -> 1920
B197: Total Mileage Cost | F197: =F195*F193 -> 60
B198: Total Internal Handling Cost | F198: =F196+F197 -> 1980
B199: Total Internal Handling Cost / yd3 | F199: =F198/O12 -> 0.0396
A202: #15 - Cost of additional Testing
B205: Annual Cost of Outside Testing | F205: 10000
B207: Annual Cost/yd3 | F207: =F205/O12 -> 0.2
AS441: 2018
AS442: 2019
AS443: 2020
AS444: 2021
AS445: 2022
AS446: 2023
AS447: 2024
AS448: 2025
AS449: 2026
AS450: 2027
AS451: 2028
AS452: 2029
AS453: 2030
AS454: 2031
AS455: 2032
AS456: 2033
AS457: 2034
AS458: 2035
AS459: 2036
AS460: 2037
AS461: 2038
AS462: 2039
AS463: 2040
AS464: 2041
AS465: 2042
AS466: 2043
AS467: 2044
AS468: 2045
AS469: 2046
AS470: 2047
AS471: 2048
AS472: 2049
AS473: 2050
AS474: 2051
AS475: 2052
AS476: 2053
AS477: 2054
AS478: 2055
AS479: 2056
AS480: 2057
AS481: 2058
AS482: 2059
AS483: 2060
AS484: 2061
AS485: 2062
AS486: 2063
AS487: 2064
AS488: 2065
AS489: 2066
AS490: 2067
AS491: 2068
AS492: 2069
AS493: 2070
AS494: 2071
AS495: 2072
AS496: 2073
AS497: 2074
AS498: 2075
AS499: 2076
AS500: 2077
AS501: 2078
AS502: 2079
AS503: 2080
AS504: 2081
AS505: 2082
AS506: 2083
AS507: 2084
AS508: 2085
AS509: 2086
AS510: 2087
AS511: 2088
AS512: 2089
AS513: 2090
AS514: 2091
AS515: 2092
AS516: 2093
AS517: 2094
AS518: 2095
AS519: 2096
AS520: 2097
AS521: 2098
AS522: 2099
AS523: 2100
AS524: 2101
AS525: 2102
AS526: 2103
AS527: 2104
AS528: 2105
AS529: 2106
AS530: 2107
AS531: 2108
... 654 more rows

Sheet #1
B10: COPQ – Incorrect Materials Accepted/Stored
B12:  Incorrect materials accepted – for example if ¾ in. aggregate
B13: was ordered and 3/8 in. was delivered and accepted or if fly
B14: ash was pumped in the cement silo etc. Cost involved in
B15: returning that shipment or plant staff time for corrective
B16: actions
B18:  Calculate costs based on annual # of instances and average
B19: cost per instance

Sheet #2
B10: COPQ – Materials That Do Not Meet Specification
B12:  Costs of handling materials that do not meet specifications
B13: when tested – for example this can include cost associated
B14: with dealing with aggregate stockpiles based on grading tests
B15: that do not meet specifications.

Sheet #3
B10: COPQ - Concrete Loads Batched Incorrectly And Discovered Prior To Delivery
B12:  Cost due to concrete loads batched incorrectly (incorrect
B13: mixtures or batch weights) and discovered prior to delivery –
B14: Include cost of loads discarded, diverted or time spent for
B15: corrective action.

Sheet #4
B10: COPQ - Cost of Adjusting Concrete Mixtures At The Plant
B12:  Cost of adjusting concrete mixtures at the plant – Calculate
B13: time spent in mixture adjustment at the plant. Based on the
B14: NRMCA Industry data survey, assume total delivery cost of
B15: $1.25/min and an average load size is 7 yd3.
B17:  Example: If the average extra time is 6 minutes/load then the
B18: cost of mixture adjustment at the plant is $1.07/yd3.
F20: 6 / 7 X 1.25 = $1.07

Sheet #5
B10: COPQ – Over-Yielding And Cement Over-Batching
B12:  Over-yielding and cement over-batching – Measure the
B13: average yield for the top 5 selling concrete mixtures at each
B14: plant on a regular basis. If there is an average over-yield,
B15: calculate the cost of lost revenue.
B17:  Also, calculate the average cement over-batch which is in
B18: excess of the target quantity and its cost.
B21:  Example: for a plant producing 20,000 yd3/year; average sale
B22: price is $100/yd3; If 1% is the average over-yield, the cost due
B23: to over-yielding is $1/yd3
G24: 0.01 X 100 =$1
B26: If cost of cement is $0.06/lb and 2% (10 lb/yd3) is the average
B27: cement over-batch, the cost of the cement is $0.60/yd3
G28: 0.06 X 10 = $0.60
B30: The total cost therefore is $1.60/ yd3

Sheet #6
B10: COPQ – Back Charge/Credit Due To Under Yielding
B12:  Cost for the concrete producer to investigate under yielding
B13: claims.

Sheet #7
B10: COPQ - Costs due to high strength over-design (OD)
B16:  Costs due to strength OD (over 800 psi)
B17:  Mixture requirements
B18:  F'c ≤5000 psi
B19:  No maximum w/cm or minimum CM content
B20:  No early-age strength or fixed over-design requirement
B22:  Assume material cost of $1.25/yd3 for every 200 psi excess
B26: Why is Target OD set at 800 psi?
B27: If target OD was set at 1-in-1000 failure there were no low breaks
B28:  ACI’s 1-in-100 led to some low breaks
B30:  For 1-in-1000 Target OD = (3S - 500)
B31: S, PSI | C31: Target OD, PSI
B32: 600 | C32: 1300
B33: 500 | C33: 1000
B34: 433 | C34: 800
B35: 350 | C35: 610
B36:  An OD of 800 psi corresponds to less than a 1-in-1000 chance of a
B37: low break provided the standard deviation (S) is less than 433 psi
B39:  Attain low S and then target low OD
B40:  Low OD not based on low S will result in more low breaks!
B42:  Calculate average strength OD for the top 5 selling concrete
B43: mixtures
B45:  Example: If the average OD for the 5 top selling mixtures is 1600
B46: psi, total cost due to strength over-design is $5/yd3
C48: ((1600 - 800) / 200) X 1.25 = $5.00

Sheet #8
B10: COPQ – Rejected Concrete costs
B12:  Calculate volume of concrete rejected due to specification
B13: non-compliance or dispatch errors (not over-ordering)
B15:  Dispatch errors due to incorrect mixtures or batch weights, orders
B16: not cancelled, driver lost etc.
B18:  Calculate wasted material cost, handling rejected concrete including
B19: storing, crushing/tipoff, reclaimers, etc. Include cost due to lost truck
B20: time, and if the load is reused, reduction in product value
B22:  Calculate an average cost for handling one cubic yard of rejected
B23: concrete at each plant and multiply that by volume of rejected
B24: concrete that year
B27:  Example: For a plant producing 20,000 yd3/year if 1% is
B28: rejected and if the plant is in an urban location the average
B29: cost of handling rejected concrete is estimated as $300/yd3,
B30: the total rejected concrete cost can be calculated as $3/yd3 of
B31: concrete produced at that plant that year.
G33: 0.01 X 300 = $3

Sheet #9
B10: COPQ – Back Charges/Credit Due To Fresh Concrete Characteristics
B12:  Back charge/credit due to fresh concrete characteristics
B13:  All charges paid to a third party due to a fresh concrete quality issue
B15: Such as:
B16:  Poor finishability,
B17:  Difficult pumping,
B18:  Setting time,
B19:  Air content,
B20:  Slump,
B21:  Etc.

Sheet #10
B10: COPQ – Backcharge/Credit Due To Hardened Concrete Issues
B12:  Include all charges paid to a third party due to a hardened
B13: concrete quality issue such as strength (including for coring),
B14: cracking, scaling, color, putting an epoxy on a parking garage
B15: slab,
B17:  Costs Associated with removal and replacement of the concrete.

Sheet #11
B10: COPQ - Cost of Adjusting Concrete Mixtures Onsite
B12:  Cost of adjusting concrete mixtures onsite – Calculate time
B13: spent in mixture adjustment onsite. Based on the NRMCA
B14: Industry data survey, assume total delivery cost of $1.25/min
B15: and an average load size is 7 yd3. The average round trip
B16: time is 90 minutes
B18:  Example: If the company average roundtrip time exceeds the
B19: average or its target by 6 minutes/load then the cost of
B20: mixture adjustment onsite is $1.07/yd3
E22: 6 / 7 x 1.25 = $1.07

Sheet #12
B10: COPQ – Changes in Insurance Premium
B12:  Reduction/Increase in product liability insurance premium due
B13: to quality from previous year

Sheet #13
B10: COPQ – Liabilities and Penalties
B12:  Liability and Penalties paid out due to quality issues or
B13: specification non-compliance. These costs are typical of
B14: percent within limit specifications used by some DOTs.
B16:  If already included in back charges for hardened concrete
B17: characteristics do not include again

Sheet #14
B10: COPQ - Internal Costs For Handling Customer Quality Complaints
B12:  Calculate average time spent by company staff for handling
B13: customer quality complaints and compute total costs based
B14: on average salary/overhead. Include travel costs if any. Do
B15: not include any external charges paid out

Sheet #15
B10: COPQ – Cost of Additional Testing
B12:  Cost of additional testing over and above that originally
B13: planned attributed to poor concrete quality – Include costs
B14: paid to a third party to conduct these tests. Typical tests are
B15: coring for strength, petrography for air voids, w/cm, slab
B16: failure issues etc.
B18:  If already included in back charges for hardened concrete
B19: characteristics do not include

Sheet Recommended Solutions

Sheet data report generator (hidden)
C3: 2019 | D3: 2020 | E3: 2021 | F3: 2022 | G3: 2023 | H3: 2024 | I3: 2025 | J3: 2026 | K3: 2027 | L3: 2028 | M3: 2029 | N3: 2030 | O3: 2031 | P3: 2032 | Q3: 2033 | R3: 2034 | S3: 2035 | T3: 2036 | U3: 2037 | V3: 2038 | W3: 2039 | X3: 2040 | Y3: 2041 | Z3: 2042 | AA3: 2043 | AB3: 2044 | AC3: 2045 | AD3: 2046 | AE3: 2047 | AF3: 2048 | AG3: 2049 | AH3: 2050 | AI3: 2051 | AJ3: 2052 | AK3: 2053 | AL3: 2054 | AM3: 2055 | AN3: 2056 | AO3: 2057 | AP3: 2058 | AQ3: 2059 | AR3: 2060 | AS3: 2061 | AT3: 2062 | AU3: 2063 | AV3: 2064 | AW3: 2065 | AX3: 2066 | AY3: 2067 | AZ3: 2068 | BA3: 2069 | BB3: 2070 | BC3: 2071 | BD3: 2072 | BE3: 2073 | BF3: 2074 | BG3: 2075 | BH3: 2076 | BI3: 2077 | BJ3: 2078 | BK3: 2079 | BL3: 2080 | BM3: 2081 | BN3: 2082 | BO3: 2083 | BP3: 2084 | BQ3: 2085 | BR3: 2086 | BS3: 2087 | BT3: 2088 | BU3: 2089 | BV3: 2090 | BW3: 2091 | BX3: 2092 | BY3: 2093 | BZ3: 2094 | CA3: 2095 | CB3: 2096 | CC3: 2097 | CD3: 2098 | CE3: 2099 | CF3: 2100 | CG3: 2101 | CH3: 2102 | CI3: 2103 | CJ3: 2104 | CK3: 2105 | CL3: 2106 | CM3: 2107 | CN3: 2108 | CO3: 2109 | CP3: 2110 | CQ3: 2111 | CR3: 2112 | CS3: 2113 | CT3: 2114 | CU3: 2115 | CV3: 2116 | CW3: 2117 | CX3: 2118 | CY3: 2119 | CZ3: 2120 | DA3: 2121 | DB3: 2122 | DC3: 2123 | DD3: 2124 | DE3: 2125 | DF3: 2126 | DG3: 2127 | DH3: 2128 | DI3: 2129 | DJ3: 2130 | DK3: 2131 | DL3: 2132 | DM3: 2133 | DN3: 2134 | DO3: 2135 | DP3: 2136 | DQ3: 2137 | DR3: 2138 | DS3: 2139 | DT3: 2140 | DU3: 2141 | DV3: 2142 | DW3: 2143 | DX3: 2144 | DY3: 2145 | DZ3: 2146 | EA3: 2147 | EB3: 2148 | EC3: 2149 | ED3: 2150 | EE3: 2151 | EF3: 2152 | EG3: 2153 | EH3: 2154 | EI3: 2155 | EJ3: 2156 | EK3: 2157 | EL3: 2158 | EM3: 2159 | EN3: 2160 | EO3: 2161 | EP3: 2162 | EQ3: 2163 | ER3: 2164 | ES3: 2165 | ET3: 2166 | EU3: 2167 | EV3: 2168 | EW3: 2169 | EX3: 2170 | EY3: 2171 | EZ3: 2172 | FA3: 2173 | FB3: 2174 | FC3: 2175 | FD3: 2176 | FE3: 2177 | FF3: 2178 | FG3: 2179 | FH3: 2180 | FI3: 2181 | FJ3: 2182 | FK3: 2183 | FL3: 2184 | FM3: 2185 | FN3: 2186 | FO3: 2187 | FP3: 2188 | FQ3: 2189 | FR3: 2190 | FS3: 2191 | FT3: 2192 | FU3: 2193 | FV3: 2194 | FW3: 2195 | FX3: 2196 | FY3: 2197 | FZ3: 2198 | GA3: 2199 | GB3: 2200 | GC3: 2201 | GD3: 2202 | GE3: 2203 | GF3: 2204 | GG3: 2205 | GH3: 2206 | GI3: 2207 | GJ3: 2208 | GK3: 2209 | GL3: 2210 | GM3: 2211 | GN3: 2212 | GO3: 2213 | GP3: 2214 | GQ3: 2215 | GR3: 2216 | GS3: 2217 | GT3: 2218 | GU3: 2219 | GV3: 2220 | GW3: 2221 | GX3: 2222 | GY3: 2223 | GZ3: 2224 | HA3: 2225 | HB3: 2226
B4: # Occurances | C4: ='COPQ FORM'!E14 -> 7 | D4: 32
B5: Avg. Cost Per Occurance | C5: ='COPQ FORM'!E16 -> 500 | D5: 1000
B6: Annual Cost | C6: ='COPQ FORM'!E18 -> 3500 | D6: 14700
B8: # Occurances | C8: ='COPQ FORM'!E27 -> 14
B9: Avg. Cost Per Occurance | C9: ='COPQ FORM'!E29 -> 500
B10: Annual Cost | C10: ='COPQ FORM'!E31 -> 7000

Sheet COPQ REPORT 1 (hidden)
